bitfinex/quotes_BTCUSD_20250723
["timestamp","ask_amount","ask_price","bid_price","bid_amount"]
[1753274474244,6.14534974,118580.0,118570.0,1e-08]
[1753274476185,5.80409437,118580.0,118570.0,1e-08]
[1753274476405,6.14534974,118580.0,118570.0,1e-08]
[1753274477208,5.80409437,118580.0,118570.0,1e-08]
[1753274477425,5.84358765,118580.0,118570.0,1e-08]
[1753274477649,6.23358765,118580.0,118570.0,1e-08]
[1753274478270,6.21154339,118580.0,118570.0,1e-08]
[1753274478412,6.55279876,118580.0,118570.0,1e-08]
[1753274479068,6.21154339,118580.0,118570.0,1e-08]
[1753274484293,6.19578471,118580.0,118570.0,1e-08]
[1753274484495,6.21155362,118580.0,118570.0,1e-08]
[1753274485398,1.16155362,118580.0,118570.0,1e-08]
[1753274485631,6.21155362,118580.0,118570.0,1e-08]
[1753274488525,6.2174697,118580.0,118570.0,1e-08]
[1753274488746,6.0882697,118580.0,118570.0,1e-08]
[1753274488967,6.2175097,118580.0,118570.0,1e-08]
[1753274491624,6.0882697,118580.0,118570.0,1e-08]
[1753274491826,6.2174697,118580.0,118570.0,1e-08]
[1753274492509,0.35981042,118570.0,118560.0,3.197e-05]
[1753274492719,0.35981042,118570.0,118540.0,0.0004]
[1753274492720,0.99984029,118550.0,118540.0,0.0004]
[1753274492924,6.43140164,118550.0,118540.0,0.0004]
[1753274493349,6.43463164,118550.0,118540.0,1e-08]
[1753274493585,6.77588701,118550.0,118540.0,1e-08]
[1753274494135,6.83490092,118550.0,118530.0,1e-08]
[1753274494365,6.22392692,118540.0,118530.0,1e-08]
[1753274494593,5.8505556,118540.0,118530.0,0.00202001]
[1753274494814,6.12987658,118540.0,118530.0,0.00202001]
[1753274495037,5.96740658,118540.0,118530.0,0.00511001]
[1753274495710,5.96745563,118540.0,118530.0,0.00511001]
[1753274496416,5.96845563,118540.0,118530.0,0.00511001]
[1753274496655,5.96845563,118540.0,118530.0,0.37806538]
[1753274497106,5.66945563,118540.0,118530.0,0.37806538]
[1753274497322,5.95368158,118540.0,118530.0,0.37806538]
[1753274497528,5.95268158,118540.0,118530.0,0.50746538]
[1753274497732,5.95168158,118540.0,118530.0,0.50746538]
[1753274498171,5.96743612,118540.0,118530.0,0.50746538]
[1753274498393,5.9674358,118540.0,118530.0,0.50746538]
[1753274498646,5.9674358,118540.0,118530.0,0.16617001]
[1753274499454,5.9674358,118540.0,118530.0,0.50742538]
[1753274499861,5.9674358,118540.0,118530.0,0.16617001]
[1753274500071,5.9674358,118540.0,118530.0,0.50742538]
[1753274500628,5.9674358,118540.0,118530.0,0.16617001]
[1753274500831,5.9674358,118540.0,118530.0,0.50742538]
[1753274501498,5.96433998,118540.0,118500.0,0.45739559]
[1753274501759,5.96433998,118540.0,118470.0,1e-08]
[1753274501760,0.2317,118490.0,118470.0,1e-08]
[1753274501997,0.2317,118490.0,118410.0,0.00309]
[1753274501998,1.13257488,118460.0,118410.0,0.00309]
[1753274502217,1.55978927,118460.0,118450.0,0.76455365]
[1753274502445,6.98984868,118460.0,118450.0,0.39793014]
[1753274502675,6.90296868,118460.0,118450.0,0.30062384]
[1753274502924,6.77412007,118460.0,118450.0,0.27087155]
[1753274503141,6.78862779,118460.0,118450.0,0.27087155]
[1753274503371,6.82608873,118460.0,118450.0,1e-08]
[1753274503897,6.81155873,118460.0,118450.0,1e-08]
[1753274504131,6.81155873,118460.0,118430.0,0.14013]
[1753274504132,0.80319657,118440.0,118430.0,0.14013]
[1753274504371,0.80319657,118440.0,118430.0,0.14215]
[1753274504372,5.95342809,118440.0,118430.0,0.14215]
[1753274504614,5.93597907,118440.0,118430.0,0.14211]
[1753274504848,5.93597907,118440.0,118430.0,0.00511]
[1753274505121,6.27723444,118440.0,118430.0,0.00202]
[1753274505358,5.93597907,118440.0,118430.0,0.00202]
[1753274505819,6.27049486,118440.0,118430.0,0.00202]
[1753274506057,6.27049486,118440.0,118430.0,0.1391]
[1753274506267,6.33371936,118440.0,118430.0,0.00202]
[1753274506494,6.33371936,118440.0,118430.0,0.14306]
[1753274506748,6.32801285,118440.0,118430.0,0.14302]
[1753274506980,5.79479638,118440.0,118430.0,0.15111]
[1753274508390,5.79479638,118440.0,118430.0,0.14802]
[1753274508856,6.13142217,118440.0,118430.0,0.14802]
[1753274509094,6.18683016,118440.0,118430.0,0.14802]
[1753274509325,5.85231437,118440.0,118430.0,0.14802]
[1753274509529,5.85020437,118440.0,118430.0,0.14802]
[1753274509792,5.85019591,118440.0,118430.0,0.14802]
[1753274510017,6.1900517,118440.0,118430.0,0.146]
[1753274510268,6.1900517,118440.0,118430.0,0.009]
[1753274510496,6.1900517,118440.0,118410.0,0.00329]
[1753274510497,0.63577892,118420.0,118410.0,0.00329]
[1753274510714,6.12812044,118420.0,118410.0,0.13918]
[1753274510962,6.33352843,118420.0,118410.0,0.13918]
[1753274511518,6.33352843,118420.0,118410.0,0.1391]
[1753274511612,6.27812044,118420.0,118410.0,0.1391]
[1753274511856,6.27812044,118420.0,118410.0,0.13959205]
[1753274512301,6.28592382,118420.0,118410.0,0.14159205]
[1753274512815,6.28577648,118420.0,118410.0,0.14159205]
[1753274513059,6.28577648,118420.0,118410.0,0.00471205]
[1753274513314,0.6,118400.0,118390.0,0.00309]
[1753274513552,0.88525227,118400.0,118390.0,0.14303]
[1753274514032,5.93525227,118400.0,118390.0,0.14303]
[1753274514276,5.93525227,118400.0,118390.0,0.13994]
[1753274514548,6.27525227,118400.0,118390.0,0.00202]
[1753274514978,6.27525227,118400.0,118390.0,0.00511]
[1753274515425,6.33066026,118400.0,118390.0,0.00202]
[1753274515652,6.47026026,118400.0,118390.0,0.00602]
[1753274515902,6.47239026,118400.0,118390.0,0.00202]
[1753274516124,0.17737969,118390.0,118380.0,0.00814767]
[1753274516342,5.33525155,118390.0,118380.0,0.01019767]
[1753274516585,5.53037954,118390.0,118380.0,0.01019767]
[1753274516795,5.53250954,118390.0,118380.0,0.01019767]
[1753274517231,5.87573954,118390.0,118380.0,0.01014767]
[1753274518144,5.89103954,118390.0,118380.0,0.01014767]
[1753274518360,6.21776765,118390.0,118380.0,0.01014767]
[1753274518578,6.24215008,118390.0,118380.0,1e-08]
[1753274519020,0.77739468,118380.0,118370.0,0.1]
[1753274519286,6.07707129,118380.0,118370.0,0.10049255]
[1753274519478,6.08030129,118380.0,118370.0,0.10049255]
[1753274519927,6.13570928,118380.0,118370.0,0.10049255]
[1753274520348,5.93526129,118380.0,118370.0,0.10254255]
[1753274520572,6.07486129,118380.0,118370.0,0.10254255]
[1753274520787,6.07486129,118380.0,118370.0,0.10654255]
[1753274521001,6.06707886,118380.0,118370.0,0.10354255]
[1753274521433,6.06695886,118380.0,118370.0,0.10354255]
[1753274521652,6.40683465,118380.0,118370.0,0.10149255]
[1753274521869,6.42333465,118380.0,118370.0,0.10149255]
[1753274522097,6.43953465,118380.0,118370.0,0.10149255]
[1753274522521,6.10501886,118380.0,118370.0,0.10149255]
[1753274522744,6.43953465,118380.0,118370.0,0.10149255]
[1753274522956,6.44537037,118380.0,118370.0,0.10149255]
[1753274523190,0.17740967,118370.0,118360.0,6e-05]
[1753274523413,0.17740967,118370.0,118360.0,0.0002074]
[1753274523414,6.22852536,118370.0,118360.0,0.0002074]
[1753274523661,5.82852536,118370.0,118360.0,0.0002074]
[1753274523889,5.84432536,118370.0,118360.0,0.0002074]
[1753274524363,5.84432713,118370.0,118360.0,0.0002074]
[1753274525018,0.61689966,118340.0,118330.0,0.19698764]
[1753274525231,0.89443848,118340.0,118330.0,0.1783866]
[1753274525453,0.73388407,118340.0,118330.0,0.18683747]
[1753274525659,0.90288913,118340.0,118330.0,0.02496407]
[1753274525879,1.30872675,118340.0,118330.0,0.02496407]
[1753274526302,1.30027681,118340.0,118330.0,0.20243378]
[1753274526510,1.30027681,118340.0,118330.0,0.01851313]
[1753274526996,1.29182673,118340.0,118330.0,0.03616215]
[1753274527206,1.29182673,118340.0,118330.0,0.21363178]
[1753274527641,1.29182673,118340.0,118330.0,0.21563186]
[1753274527851,1.29182673,118340.0,118330.0,0.22408265]
[1753274528065,1.29182673,118340.0,118330.0,0.22408272]
[1753274528960,1.11437145,118340.0,118330.0,0.2240828]
[1753274529182,1.1059218,118340.0,118330.0,0.23253359]
[1753274529404,1.1059218,118340.0,118330.0,0.24943468]
[1753274529832,1.11437138,118340.0,118330.0,0.24943468]
[1753274530279,1.1059218,118340.0,118330.0,0.24943468]
[1753274530497,1.11437138,118340.0,118330.0,0.24943468]
[1753274530711,1.1059218,118340.0,118330.0,0.24943468]
[1753274530963,1.1059218,118340.0,118330.0,0.68422777]
[1753274531177,0.4214445,118340.0,118330.0,0.59975047]
[1753274531641,0.0214445,118340.0,118330.0,0.59975047]
[1753274532705,0.0214445,118340.0,118330.0,0.59775047]
[1753274532916,0.0214445,118340.0,118330.0,0.59575047]
[1753274533128,0.0214445,118340.0,118330.0,0.60175047]
[1753274533340,0.0224445,118340.0,118330.0,0.60175047]
[1753274534914,0.0224445,118340.0,118330.0,0.57131619]
[1753274535167,0.0224445,118340.0,118330.0,0.56117143]
[1753274535389,0.0234445,118340.0,118330.0,0.56617143]
[1753274536675,0.0234445,118340.0,118330.0,0.70525143]
[1753274537116,0.0234445,118340.0,118330.0,0.72270045]
[1753274538140,0.0234445,118340.0,118330.0,0.73440045]
[1753274539508,0.1234445,118340.0,118330.0,0.75978445]
[1753274539975,0.1234445,118340.0,118330.0,0.62070445]
[1753274540199,0.1234445,118340.0,118330.0,0.75950445]
[1753274540641,0.1234445,118340.0,118330.0,0.62070445]
[1753274540852,0.1234445,118340.0,118330.0,0.75938445]
[1753274541538,0.102,118340.0,118330.0,0.75938445]
[1753274541769,0.11769652,118340.0,118330.0,0.75938445]
[1753274543613,0.11769652,118340.0,118330.0,0.62070445]
[1753274543819,0.11769652,118340.0,118330.0,0.75910445]
[1753274545090,0.11769652,118340.0,118330.0,0.7185224]
[1753274545311,0.12556038,118340.0,118330.0,0.7184024]
[1753274546040,0.12556038,118340.0,118330.0,0.7183624]
[1753274547702,0.12556038,118340.0,118330.0,0.38384661]
[1753274547947,0.12556038,118340.0,118330.0,0.6907024]
[1753274548183,0.12556038,118340.0,118330.0,0.35618661]
[1753274548432,0.1314609,118340.0,118330.0,0.6907024]
[1753274548668,0.13991055,118340.0,118330.0,0.54417196]
[1753274548860,0.29521062,118340.0,118330.0,0.33496065]
[1753274549122,0.31061048,118340.0,118330.0,0.55678811]
[1753274549342,0.31061048,118340.0,118330.0,0.70321129]
[1753274549587,0.3190602,118340.0,118330.0,0.70321129]
[1753274549794,0.72650999,118340.0,118330.0,0.71566031]
[1753274550017,0.72651007,118340.0,118330.0,0.71566031]
[1753274550285,0.72651007,118340.0,118330.0,0.37576134]
[1753274550524,0.73396008,118340.0,118330.0,0.71266031]
[1753274550746,0.72551007,118340.0,118330.0,0.36976134]
[1753274550986,0.73396008,118340.0,118330.0,0.71566031]
[1753274551440,0.71174569,118340.0,118330.0,0.37276134]
[1753274551661,0.7201957,118340.0,118330.0,0.70765167]
[1753274551890,0.70449918,118340.0,118330.0,0.70765167]
[1753274552348,0.32844933,118340.0,118330.0,0.69988123]
[1753274552572,0.31154917,118340.0,118330.0,0.70833167]
[1753274553038,0.32729035,118340.0,118330.0,0.37344134]
[1753274553271,0.33574043,118340.0,118330.0,0.65720467]
[1753274553505,0.33574043,118340.0,118330.0,0.32231434]
[1753274553719,0.33574043,118340.0,118330.0,0.65720467]
[1753274553958,0.33574036,118340.0,118330.0,0.65720467]
[1753274554191,0.31039076,118340.0,118330.0,0.3396388]
[1753274554426,0.28644118,118340.0,118330.0,0.68298]
[1753274554658,0.4723454,118340.0,118330.0,0.66607819]
[1753274554885,0.48079526,118340.0,118330.0,0.49705935]
[1753274555119,0.47350416,118340.0,118330.0,0.49705935]
[1753274555384,0.45660465,118340.0,118330.0,0.47961033]
[1753274555624,0.54873194,118340.0,118330.0,0.14472]
[1753274555834,0.54873194,118340.0,118330.0,0.006]
[1753274556292,0.94873194,118340.0,118330.0,0.14468]
[1753274557420,0.94873194,118340.0,118330.0,0.14635327]
[1753274557653,0.54873194,118340.0,118330.0,0.14635327]
[1753274558086,0.54873194,118340.0,118330.0,0.15808902]
[1753274558310,0.54873194,118340.0,118330.0,0.1318008]
[1753274558758,0.54873194,118340.0,118330.0,0.1338008]
[1753274560370,0.54873194,118340.0,118330.0,0.15812902]
[1753274561498,0.54873194,118340.0,118330.0,0.15099427]
[1753274561990,0.54873194,118340.0,118330.0,0.15061023]
[1753274562229,0.54818409,118340.0,118330.0,0.15061023]
[1753274562466,0.54818409,118340.0,118330.0,0.15045023]
[1753274567429,0.24945215,118340.0,118330.0,0.68166409]
[1753274567660,0.24945215,118340.0,118330.0,0.67955136]
[1753274567872,0.2579018,118340.0,118330.0,0.67384858]
[1753274568120,0.24945215,118340.0,118330.0,0.66762113]
[1753274569462,0.26635159,118340.0,118330.0,0.66762113]
[1753274569690,0.45155615,118340.0,118330.0,0.52081069]
[1753274569900,0.46322702,118340.0,118330.0,0.49057935]
[1753274570113,0.45685708,118340.0,118330.0,0.32466786]
[1753274570327,0.67940209,118340.0,118330.0,0.35001974]
[1753274570537,0.68010175,118340.0,118330.0,0.35847018]
[1753274570763,0.69492198,118340.0,118330.0,0.35847018]
[1753274571010,0.70992198,118340.0,118330.0,0.35847018]
[1753274571222,0.88100654,118340.0,118330.0,0.70139907]
[1753274571450,0.71200198,118340.0,118330.0,0.70139907]
[1753274571676,0.71200198,118340.0,118330.0,0.70129907]
[1753274571891,0.70992198,118340.0,118330.0,0.70129907]
[1753274572106,0.70147183,118340.0,118330.0,0.70129907]
[1753274572312,0.70147183,118340.0,118330.0,0.35837018]
[1753274572525,0.70147183,118340.0,118330.0,0.70129907]
[1753274572743,0.70147183,118340.0,118330.0,0.69284863]
[1753274572950,0.70992198,118340.0,118330.0,0.69284863]
[1753274573188,0.70147183,118340.0,118330.0,0.70129907]
[1753274573379,0.87892654,118340.0,118330.0,0.69284863]
[1753274573824,0.87892704,118340.0,118330.0,0.68439826]
[1753274574045,0.86202667,118340.0,118330.0,0.68439826]
[1753274574506,0.86202667,118340.0,118330.0,0.69284884]
[1753274574932,0.87047689,118340.0,118330.0,0.69284884]
[1753274575148,0.86202667,118340.0,118330.0,0.69284877]
[1753274575356,0.85357659,118340.0,118330.0,0.70129921]
[1753274575566,0.84702624,118340.0,118330.0,0.70129921]
[1753274576247,0.84702624,118340.0,118330.0,0.69284877]
[1753274576464,0.85547639,118340.0,118330.0,0.69284891]
[1753274576898,0.83857623,118340.0,118330.0,0.70974986]
[1753274577120,0.83857623,118340.0,118330.0,0.70129942]
[1753274577332,0.84702631,118340.0,118330.0,0.70129942]
[1753274577560,0.84702624,118340.0,118330.0,0.70129942]
[1753274577779,0.84702624,118340.0,118330.0,0.70129935]
[1753274577987,0.84702624,118340.0,118330.0,0.70129942]
[1753274578196,0.84702624,118340.0,118330.0,0.69284891]
[1753274578445,0.85747632,118340.0,118330.0,0.54619826]
[1753274578668,0.87367632,118340.0,118330.0,0.34090937]
[1753274578894,0.88212654,118340.0,118330.0,0.55464891]
[1753274579114,0.87367632,118340.0,118330.0,0.70065942]
[1753274579337,0.87367632,118340.0,118330.0,0.69220891]
[1753274579540,0.70467176,118340.0,118330.0,0.70065949]
[1753274579788,0.69622168,118340.0,118330.0,0.70910965]
[1753274580197,0.69422168,118340.0,118330.0,0.70910965]
[1753274580415,0.67802168,118340.0,118330.0,0.70910965]
[1753274580631,0.67802168,118340.0,118330.0,0.70340461]
[1753274581061,0.87982647,118340.0,118330.0,0.69495417]
[1753274581296,0.87337682,118340.0,118330.0,0.69495417]
[1753274581535,0.69592161,118340.0,118330.0,0.70340461]
[1753274581984,0.67802175,118340.0,118330.0,0.36047572]
[1753274582207,0.66635152,118340.0,118330.0,0.70340461]
[1753274582433,0.67480153,118340.0,118330.0,0.70340461]
[1753274582665,0.85534631,118340.0,118330.0,0.34357477]
[1753274582885,0.87244631,118340.0,118330.0,0.69495417]
[1753274583128,0.69499153,118340.0,118330.0,0.70340461]
[1753274583351,0.70344161,118340.0,118330.0,0.70340461]
[1753274583588,0.88089696,118340.0,118330.0,0.68650366]
[1753274583827,0.88754717,118340.0,118330.0,0.69495417]
[1753274584271,0.88754717,118340.0,118330.0,0.70340461]
[1753274584706,0.88754717,118340.0,118330.0,0.69495417]
[1753274584959,0.47909716,118340.0,118330.0,0.35457287]
[1753274585176,0.47064708,118340.0,118330.0,0.49181287]
[1753274585369,0.47064708,118340.0,118330.0,0.48016889]
[1753274585589,0.55512438,118340.0,118330.0,0.13724]
[1753274585818,0.55512438,118340.0,118330.0,0.48016889]
[1753274586044,0.55512438,118340.0,118330.0,0.64918773]
[1753274586310,0.55512438,118340.0,118330.0,0.65763867]
[1753274586542,0.55512438,118340.0,118330.0,0.48016889]
[1753274586783,0.54667423,118340.0,118330.0,0.13724]
[1753274587223,0.54667423,118340.0,118330.0,0.48016889]
[1753274588452,0.54667423,118340.0,118330.0,0.15468902]
[1753274588677,0.54667423,118340.0,118330.0,0.49761791]
[1753274589112,0.54667423,118340.0,118330.0,0.15464902]
[1753274589969,0.62746963,118330.0,118320.0,1e-08]
[1753274590179,0.67301035,118330.0,118320.0,0.67494263]
[1753274590393,1.15748765,118330.0,118320.0,0.68347723]
[1753274590829,1.15748765,118330.0,118320.0,0.6919286]
[1753274591034,1.15748765,118330.0,118320.0,0.34899971]
[1753274591249,1.14903693,118330.0,118320.0,0.68527723]
[1753274591944,0.97056811,118330.0,118320.0,0.70217975]
[1753274592151,0.85845037,118330.0,118320.0,0.70317975]
[1753274592370,0.89890232,118330.0,118320.0,0.70317975]
[1753274592598,0.90399232,118330.0,118320.0,0.70317975]
[1753274592808,0.91959232,118330.0,118320.0,0.70317975]
[1753274593026,0.68016079,118330.0,118320.0,0.68627723]
[1753274593242,0.51114195,118330.0,118320.0,0.7031796]
[1753274593659,0.90269116,118330.0,118320.0,0.7031796]
[1753274593890,0.89424029,118330.0,118320.0,0.7031796]
[1753274594057,0.87864029,118330.0,118320.0,0.7031796]
[1753274594712,0.88709073,118330.0,118320.0,0.69747419]
[1753274594925,0.87864029,118330.0,118320.0,0.69747419]
[1753274595166,0.87019,118330.0,118320.0,0.69747419]
[1753274595580,0.87864037,118330.0,118320.0,0.69747419]
[1753274595992,0.89554139,118330.0,118320.0,0.3545453]
[1753274596208,0.88709081,118330.0,118320.0,0.3545453]
[1753274596433,0.89554139,118330.0,118320.0,0.69747419]
[1753274596640,0.88709081,118330.0,118320.0,0.69747419]
[1753274597092,0.89554139,118330.0,118320.0,0.69747419]
[1753274597306,0.88709081,118330.0,118320.0,0.69747419]
[1753274597731,0.89554139,118330.0,118320.0,0.69747419]
[1753274597932,0.90399211,118330.0,118320.0,0.3545453]
[1753274598144,0.91959211,118330.0,118320.0,0.69747419]
[1753274598362,0.50269081,118330.0,118320.0,0.69747419]
[1753274598533,0.51114139,118330.0,118320.0,0.69747419]
[1753274598674,0.91114139,118330.0,118320.0,0.55959419]
[1753274598890,0.90269081,118330.0,118320.0,0.69743419]
[1753274599094,0.91114146,118330.0,118320.0,0.69743419]
[1753274599531,1.08861109,118330.0,118320.0,0.68053175]
[1753274599734,1.08861109,118330.0,118320.0,0.68898304]
[1753274600102,0.92804312,118330.0,118320.0,0.70588541]
[1753274600330,0.91959225,118330.0,118320.0,0.70588541]
[1753274600849,1.09706203,118330.0,118320.0,0.69743426]
[1753274601057,0.91959225,118330.0,118320.0,0.70588541]
[1753274601264,0.92804312,118330.0,118320.0,0.70588541]
[1753274601488,0.69706196,118330.0,118320.0,0.68898304]
[1753274601702,0.68861209,118330.0,118320.0,0.68053175]
[1753274601917,0.68861209,118330.0,118320.0,0.67596837]
[1753274602138,1.08861209,118330.0,118320.0,0.68441966]
[1753274602352,0.91114231,118330.0,118320.0,0.68441952]
[1753274602567,1.08016115,118330.0,118320.0,0.67596837]
[1753274602787,1.08016115,118330.0,118320.0,0.67596851]
[1753274603035,1.08016115,118330.0,118320.0,0.68441995]
[1753274603238,1.0717105,118330.0,118320.0,0.68441995]
[1753274603459,1.0717105,118330.0,118320.0,0.34149106]
[1753274603680,1.14773701,118330.0,118320.0,0.52122542]
[1753274603860,1.13928614,118330.0,118320.0,0.6690142]
[1753274604203,1.13928614,118330.0,118320.0,0.67746585]
[1753274604411,1.13928614,118330.0,118320.0,0.68591743]
[1753274604842,1.13928614,118330.0,118320.0,0.6690142]
[1753274605063,1.13928614,118330.0,118320.0,0.67746585]
[1753274605284,1.13928614,118330.0,118320.0,0.68591743]
[1753274605723,1.13928614,118330.0,118320.0,0.67746585]
[1753274605934,1.13928614,118330.0,118320.0,0.68591743]
[1753274606148,1.13928614,118330.0,118320.0,0.69436894]
[1753274606579,1.13928614,118330.0,118320.0,0.68591743]
[1753274606791,1.23928614,118330.0,118320.0,0.68591743]
[1753274607148,1.23928614,118330.0,118320.0,0.54839743]
[1753274607352,1.23928614,118330.0,118320.0,0.68567743]
[1753274607573,1.23928614,118330.0,118320.0,0.67722585]
[1753274607782,1.23928614,118330.0,118320.0,0.68567729]
[1753274608036,1.23928614,118330.0,118320.0,0.3427484]
[1753274608247,1.23928614,118330.0,118320.0,0.68567729]
[1753274608465,1.23928614,118330.0,118320.0,0.69412866]
[1753274609317,1.2646386,118330.0,118320.0,0.70257995]
[1753274610251,1.2646386,118330.0,118320.0,0.70157995]
[1753274610456,1.2646386,118330.0,118320.0,0.69212866]
[1753274610685,1.24773708,118330.0,118320.0,0.67522585]
[1753274610900,1.24873708,118330.0,118320.0,0.68367743]
[1753274611329,1.24873708,118330.0,118320.0,0.70058023]
[1753274611628,1.24873708,118330.0,118320.0,0.71003145]
[1753274612915,1.24873708,118330.0,118320.0,0.70158023]
[1753274613138,1.24873708,118330.0,118320.0,0.69312894]
[1753274613361,1.24028614,118330.0,118320.0,0.49874107]
[1753274613570,1.24028614,118330.0,118320.0,0.36146107]
[1753274613777,1.24028614,118330.0,118320.0,0.15533218]
[1753274613970,0.84028614,118330.0,118320.0,0.13788316]
[1753274614889,0.84028614,118330.0,118320.0,0.15533218]
[1753274615098,0.84028614,118330.0,118320.0,0.33281696]
[1753274615562,0.84028614,118330.0,118320.0,0.15533218]
[1753274615785,0.84028614,118330.0,118320.0,0.01853218]
[1753274616217,0.84028614,118330.0,118320.0,0.15533218]
[1753274616435,0.84028614,118330.0,118320.0,0.01853218]
[1753274616910,0.84028614,118330.0,118320.0,0.15529218]
[1753274617090,0.84028614,118330.0,118320.0,0.01853218]
[1753274617233,0.84028614,118330.0,118320.0,0.32432531]
[1753274617648,0.84028614,118330.0,118320.0,0.33269689]
[1753274618147,0.84028614,118330.0,118320.0,0.3411484]
[1753274618378,0.84028614,118330.0,118320.0,0.18756531]
[1753274618598,0.84028614,118330.0,118320.0,0.32416531]
[1753274618819,0.84028614,118330.0,118320.0,0.33261696]
[1753274619034,0.84028614,118330.0,118320.0,0.68399743]
[1753274619271,0.84028614,118330.0,118320.0,0.70090024]
[1753274619467,0.68816825,118330.0,118320.0,0.70935139]
[1753274619696,0.6966189,118330.0,118320.0,0.70935139]
[1753274620217,0.70506962,118330.0,118320.0,0.57275139]
[1753274620427,0.70506962,118330.0,118320.0,0.70931139]
[1753274620635,0.6966189,118330.0,118320.0,0.70931139]
[1753274620859,0.6966189,118330.0,118320.0,0.57275139]
[1753274621082,0.6966189,118330.0,118320.0,0.70931139]
[1753274621271,0.70506969,118330.0,118320.0,0.70923139]
[1753274621582,0.70506969,118330.0,118320.0,0.70900004]
[1753274621801,0.6966189,118330.0,118320.0,0.70900004]
[1753274621956,0.67056818,118330.0,118320.0,0.70900004]
[1753274622185,0.66211767,118330.0,118320.0,0.74083435]
[1753274622386,0.66211759,118330.0,118320.0,0.74083435]
[1753274622567,0.6536673,118330.0,118320.0,0.70900004]
[1753274622768,0.551,118330.0,118320.0,1.05192893]
[1753274622969,0.401,118330.0,118320.0,1.06712893]
[1753274623208,0.401,118330.0,118320.0,1.09251793]
[1753274623619,0.401,118330.0,118320.0,0.74958904]
[1753274623824,0.401,118330.0,118320.0,1.18869523]
[1753274624992,0.401,118330.0,118320.0,1.10421793]
[1753274625374,0.401,118330.0,118320.0,1.09251793]
[1753274629116,0.401,118330.0,118320.0,1.39141793]
[1753274630407,0.801,118330.0,118320.0,1.39141793]
[1753274632050,0.801,118330.0,118320.0,1.37621793]
[1753274632483,0.801,118330.0,118320.0,1.39171793]
[1753274632904,0.401,118330.0,118320.0,1.66106868]
[1753274633076,0.401,118330.0,118320.0,1.79698868]
[1753274633517,0.251,118330.0,118320.0,1.82733523]
[1753274633729,0.251,118330.0,118320.0,1.82648342]
[1753274633935,0.251,118330.0,118320.0,1.69256342]
[1753274634135,0.25,118330.0,118320.0,1.82844342]
[1753274634355,0.251,118330.0,118320.0,1.81874342]
[1753274634561,0.251,118330.0,118320.0,1.81674342]
[1753274634743,0.251,118330.0,118320.0,1.81974342]
[1753274635593,0.251,118330.0,118320.0,1.71996612]
[1753274642173,0.251,118330.0,118320.0,1.73486612]
[1753274643074,0.251,118330.0,118320.0,1.83104342]
[1753274649887,0.251,118330.0,118320.0,1.81934342]
[1753274651524,0.251,118330.0,118320.0,1.66836342]
[1753274651660,0.2676,118330.0,118320.0,1.80376342]
[1753274652191,0.251,118330.0,118320.0,1.80376342]
[1753274652841,0.251,118330.0,118320.0,1.8727195]
[1753274653372,0.251,118330.0,118320.0,1.7373195]
[1753274653577,0.28898,118330.0,118320.0,1.71924612]
[1753274653992,0.28688,118330.0,118320.0,1.71924612]
[1753274654196,0.2676,118330.0,118320.0,1.71924612]
[1753274654410,0.251,118330.0,118320.0,1.71924612]
[1753274654611,0.251,118330.0,118320.0,1.7721855]
[1753274654843,0.251,118330.0,118320.0,1.71924612]
[1753274655261,0.2673,118330.0,118320.0,1.71924612]
[1753274655908,0.251,118330.0,118320.0,1.71924612]
[1753274656302,0.266,118330.0,118320.0,1.71924612]
[1753274658730,0.251,118330.0,118320.0,1.71904612]
[1753274661704,0.2666,118330.0,118320.0,1.58388612]
[1753274661908,0.2666,118330.0,118320.0,1.71888612]
[1753274663186,0.2666,118330.0,118320.0,1.80445677]
[1753274663711,0.26958,118330.0,118320.0,1.80445677]
[1753274664043,0.26958,118330.0,118320.0,1.80429677]
[1753274664235,0.28468,118330.0,118320.0,1.80347852]
[1753274665910,0.2666,118330.0,118320.0,1.88795582]
[1753274666137,0.2666,118330.0,118320.0,1.80347852]
[1753274667840,0.251,118330.0,118320.0,1.88795582]
[1753274668074,0.15,118370.0,118360.0,0.02534553]
[1753274668075,0.1808,118370.0,118360.0,0.02534553]
[1753274668296,0.1808,118370.0,118360.0,1.12199118]
[1753274668518,0.1808,118370.0,118360.0,1.23010798]
[1753274668752,0.1808,118370.0,118360.0,1.20435628]
[1753274669205,0.1808,118370.0,118360.0,1.14348569]
[1753274669425,0.1808,118370.0,118360.0,1.14353494]
[1753274670137,0.1799552,118370.0,118360.0,1.14453494]
[1753274670359,0.1799552,118370.0,118360.0,1.00989494]
[1753274670594,0.1799552,118370.0,118360.0,1.14449494]
[1753274671335,0.1799552,118370.0,118360.0,0.4593151]
[1753274671560,0.1799552,118370.0,118360.0,1.14449494]
[1753274671786,0.1829152,118370.0,118360.0,1.06001764]
[1753274672009,0.1850452,118370.0,118360.0,0.58078772]
[1753274672240,0.49349271,118370.0,118360.0,0.71530772]
[1753274672480,0.50194022,118370.0,118360.0,0.71530772]
[1753274672706,0.50194022,118370.0,118360.0,0.3727178]
[1753274672934,0.49349264,118370.0,118360.0,0.71530772]
[1753274673159,0.4850452,118370.0,118360.0,0.71530772]
[1753274673605,0.4850452,118370.0,118360.0,0.3727178]
[1753274673835,0.4850452,118370.0,118360.0,0.71630772]
[1753274674927,0.4850452,118370.0,118360.0,1.05889764]
[1753274675652,0.3320852,118370.0,118360.0,1.14541494]
[1753274675869,0.18446,118380.0,118370.0,0.21175414]
[1753274676092,0.1815,118380.0,118370.0,0.89374406]
[1753274676981,0.1657,118380.0,118370.0,0.89374406]
[1753274677403,0.1667,118380.0,118370.0,0.89374406]
[1753274677588,0.151,118380.0,118370.0,0.98085136]
[1753274677837,0.151,118380.0,118370.0,0.89637406]
[1753274678044,0.151,118380.0,118370.0,0.75930406]
[1753274678045,0.1669,118380.0,118370.0,0.75930406]
[1753274678478,0.1826,118380.0,118370.0,0.89358406]
[1753274678702,0.18869,118380.0,118370.0,0.75930406]
[1753274678910,0.18869,118380.0,118370.0,0.89358406]
[1753274680896,0.21403104,118380.0,118370.0,0.75726406]
[1753274681100,0.21403104,118380.0,118370.0,0.54899428]
[1753274681338,0.20558381,118380.0,118370.0,0.90003178]
[1753274681549,0.19713673,118380.0,118370.0,0.90003178]
[1753274681769,0.20558367,118380.0,118370.0,0.90003178]
[1753274682320,0.20558367,118380.0,118370.0,0.76567178]
[1753274682544,0.20558367,118380.0,118370.0,0.55740186]
[1753274682772,0.20558367,118380.0,118370.0,0.89999178]
[1753274682998,0.21403068,118380.0,118370.0,0.89999178]
[1753274683435,0.2055836,118380.0,118370.0,0.92536978]
[1753274683654,0.2055836,118380.0,118370.0,0.98446908]
[1753274683897,0.2055836,118380.0,118370.0,0.55740186]
[1753274684107,0.22247762,118380.0,118370.0,0.92536978]
[1753274684320,0.22247762,118380.0,118370.0,0.89999178]
[1753274684548,0.23092485,118380.0,118370.0,0.89999178]